bitfinex-derivatives/quotes_ETHF0:USTF0_20260207
["timestamp","ask_amount","ask_price","bid_price","bid_amount"]
[1770465064308,0.53722792,2013.5,2011.9,0.36132326]
[1770465066109,0.56443812,2013.4,2011.9,0.36132326]
[1770465066508,0.56443812,2013.3,2011.9,0.36132326]
[1770465066719,0.56443812,2013.2,2011.9,0.36132326]
[1770465067421,0.56443812,2013.1,2011.9,0.36132326]
[1770465068323,6.44593881,2013.1,2011.9,0.36132326]
[1770465068522,0.56443812,2013.0,2011.9,0.36132326]
[1770465069523,0.56443812,2013.0,2012.0,0.3414673]
[1770465072316,0.56443812,2013.0,2012.1,0.32840526]
[1770465072510,0.56443812,2013.0,2012.1,0.57711526]
[1770465072714,0.56443812,2013.0,2012.2,0.32840526]
[1770465074518,0.56443812,2013.0,2011.8,0.34488902]
[1770465074724,0.53905343,2012.9,2011.8,0.34488902]
[1770465077324,0.53905343,2012.8,2011.8,0.34488902]
[1770465079518,0.53905343,2012.8,2011.8,0.34189793]
[1770465080524,0.53905343,2012.8,2011.9,0.34189793]
[1770465084224,0.53905343,2012.7,2011.9,0.34189793]
[1770465087330,0.53905343,2012.7,2011.6,2.97040416]
[1770465087536,0.53905343,2012.3,2011.5,0.34581658]
[1770465089129,6.42055412,2012.3,2011.5,0.34581658]
[1770465089330,0.53905343,2012.2,2011.5,0.34581658]
[1770465090027,0.53905343,2012.2,2011.5,0.00461749]
[1770465090235,0.53905343,2012.2,2011.5,0.37496964]
[1770465093641,6.42055412,2012.4,2011.6,0.36021517]
[1770465093835,0.53905343,2012.4,2011.6,0.36021517]
[1770465094630,0.53905343,2012.4,2011.7,0.24875]
[1770465094937,0.53905343,2012.4,2011.8,0.36130681]
[1770465095327,0.53905343,2012.5,2011.8,0.36130681]
[1770465096634,0.53905343,2012.5,2011.9,0.36293406]
[1770465097439,8.89541525,2013.0,2011.9,0.36293406]
[1770465097440,0.5516622,2012.9,2012.1,0.36293406]
[1770465098535,0.5516622,2012.9,2012.2,0.36293406]
[1770465099337,0.5516622,2013.1,2012.4,0.37746856]
[1770465100732,0.5516622,2013.1,2012.5,0.38283625]
[1770465100932,0.5516622,2013.3,2012.5,0.38283625]
[1770465102438,6.43702655,2013.5,2012.7,0.38283625]
[1770465102638,0.00386366,2013.5,2012.9,0.38283625]
[1770465102839,0.5516622,2013.7,2012.9,0.38283625]
[1770465103643,0.5516622,2013.7,2013.1,0.37344454]
[1770465103936,0.55753034,2013.7,2013.1,0.3771741]
[1770465105140,0.55753034,2013.7,2013.1,0.3766073]
[1770465110743,0.55753034,2013.7,2013.2,0.37069065]
[1770465110938,0.00586814,2013.7,2013.2,0.37069065]
[1770465111244,0.55753034,2013.7,2013.2,0.37069065]
[1770465111750,0.00586814,2013.7,2013.2,0.37069065]
[1770465111946,0.55753034,2013.7,2013.1,0.25231956]
[1770465112250,0.55753034,2013.7,2012.5,0.24866]
[1770465113145,0.55753034,2013.7,2012.5,0.25305202]
[1770465113541,0.55753034,2013.7,2012.5,0.62936289]
[1770465113745,0.55753034,2013.7,2012.6,0.37631087]
[1770465115848,0.55753034,2013.7,2012.8,0.24862]
[1770465116346,0.55753034,2013.7,2012.8,0.62428885]
[1770465117355,0.55753034,2013.7,2012.9,0.35088209]
[1770465120253,0.55753034,2013.7,2012.8,0.24862]
[1770465120549,0.55753034,2013.7,2012.5,0.00439202]
[1770465120754,0.5516622,2013.6,2012.5,0.00439202]
[1770465121364,0.5516622,2013.6,2012.6,0.34908641]
[1770465121546,0.5516622,2013.6,2012.9,0.34908641]
[1770465124662,0.5516622,2013.6,2012.8,0.59682774]
[1770465126659,0.5516622,2013.6,2012.5,0.35540318]
[1770465127661,0.56432504,2013.5,2012.5,0.37606871]
[1770465128458,5.88150069,2013.4,2012.5,0.00439202]
[1770465128662,0.56432504,2013.3,2012.5,0.00439202]
[1770465128862,0.56432504,2013.2,2012.5,0.00439202]
[1770465137576,0.58896345,2013.1,2012.1,0.36879658]
[1770465137871,0.58896345,2013.0,2012.1,0.36879658]
[1770465138263,0.58896345,2013.0,2012.0,0.24872]
[1770465138468,0.58896345,2013.0,2012.0,0.2529092]
[1770465138969,0.58896345,2013.0,2012.0,0.62550071]
[1770465139170,0.58896345,2013.0,2011.9,1.00246734]
[1770465139366,5.88150069,2012.6,2011.5,0.37259151]
[1770465139670,0.58896345,2012.4,2011.5,0.37259151]
[1770465140268,0.58896345,2012.4,2011.5,0.3772665]
[1770465145371,6.47046414,2012.4,2011.5,0.00467499]
[1770465145568,0.58896345,2012.2,2011.1,0.74193929]
[1770465146072,0.58896345,2012.2,2011.1,0.36713611]
[1770465146267,0.58896345,2012.2,2011.0,0.37947817]
[1770465146468,0.59352777,2012.2,2011.0,0.38424123]
[1770465146765,0.59352777,2012.2,2011.1,0.37947817]
[1770465148974,0.59352777,2012.2,2011.0,0.34472693]
[1770465149664,0.58896345,2012.1,2011.0,0.34472693]
[1770465150165,0.58896345,2012.1,2011.0,0.73019941]
[1770465152572,0.58896345,2012.1,2011.0,0.34472693]
[1770465152774,0.58896345,2011.9,2011.0,0.34472693]
[1770465153668,0.58896345,2011.9,2011.0,0.00476306]
[1770465154067,0.58896345,2011.9,2011.0,0.38296802]
[1770465164376,0.58896345,2011.9,2010.9,0.3518786]
[1770465164582,6.42035342,2011.2,2009.9,0.24898]
[1770465164882,0.53885273,2011.0,2010.0,0.37294311]
[1770465165677,0.53885273,2011.0,2010.0,0.37737108]
[1770465166272,6.42035342,2011.0,2010.0,0.00442797]
[1770465166577,6.42035342,2011.0,2009.6,0.37281816]
[1770465166578,0.53885273,2010.9,2009.6,0.37281816]
[1770465166875,0.53885273,2010.9,2009.7,0.38193239]
[1770465167079,0.53885273,2010.8,2009.7,0.38193239]
[1770465167279,0.53885273,2011.2,2010.3,0.38193239]
[1770465167477,0.53885273,2011.2,2010.4,0.38193239]
[1770465167783,0.53885273,2011.6,2010.8,0.38193239]
[1770465172391,0.53885273,2011.8,2010.8,0.38193239]
[1770465172586,0.53885273,2011.8,2011.0,0.44042658]
[1770465180898,5.88606501,2012.2,2011.2,0.43505669]
[1770465180899,0.53885273,2012.1,2011.2,0.43505669]
[1770465181598,0.00456432,2012.2,2011.3,0.43505669]
[1770465181898,0.54341705,2012.2,2011.4,0.43505669]
[1770465182094,0.54341705,2012.2,2011.0,4.44820156]
[1770465182095,5.88150069,2012.5,2011.7,0.5707184]
[1770465182287,0.53885273,2012.7,2011.9,0.5707184]
[1770465182495,0.53885273,2012.7,2011.8,0.8194584]
[1770465182688,0.53885273,2012.7,2011.9,0.5707184]
[1770465183094,0.54372156,2012.7,2011.9,0.57636783]
[1770465183289,0.00486883,2012.7,2011.9,0.57636783]
[1770465183493,0.54372156,2012.7,2011.9,0.57636783]
[1770465202311,0.56204932,2012.6,2011.9,0.57636783]
[1770465206423,3.52478821,2012.6,2011.9,0.57636783]
[1770465206823,0.56204932,2012.5,2011.9,0.57636783]
[1770465207123,3.52478821,2012.6,2011.9,0.57636783]
[1770465207524,0.56204932,2012.5,2011.9,0.57636783]
[1770465208517,0.56204932,2012.4,2011.9,0.57636783]
[1770465209225,3.52478821,2012.4,2011.9,0.57636783]
[1770465209426,0.56204932,2012.3,2011.9,0.57636783]
[1770465211622,44.43552227,2012.5,2012.0,0.55749472]
[1770465211823,6.44841884,2012.7,2012.0,0.55749472]
[1770465212423,10.84210359,2013.2,2012.5,0.31964649]
[1770465212621,6.44587758,2013.2,2012.9,0.17775217]
[1770465212825,7.0079269,2013.2,2012.9,0.17775217]
[1770465213422,7.01382297,2013.2,2012.9,5.1708004]
[1770465213621,0.56794539,2013.2,2012.9,4.99304823]
[1770465213822,7.0079269,2013.1,2012.9,4.99304823]
[1770465214026,0.56204932,2013.0,2012.8,2.96086016]
[1770465214221,7.0079269,2013.0,2012.7,2.96086016]
[1770465214528,6.44587758,2013.0,2012.8,0.55749472]
[1770465215224,6.44587758,2013.0,2012.8,0.34426274]
[1770465215424,7.0079269,2013.0,2012.7,2.96086016]
[1770465215619,0.56204932,2012.9,2012.7,2.96086016]
[1770465215823,6.44587758,2012.8,2012.7,2.96086016]
[1770465216026,1.26808784,2012.8,2012.7,2.96086016]
[1770465216226,1.26808784,2012.8,2012.6,4.29793547]
[1770465216227,2.71723633,2012.8,2012.6,4.29793547]
[1770465216428,2.71723633,2012.7,2012.6,4.29793547]
[1770465216630,2.71723633,2012.8,2012.6,4.29793547]
[1770465216927,1.26808784,2012.9,2012.6,4.29793547]
[1770465217133,1.90936681,2012.8,2012.6,4.29793547]
[1770465217629,1.40094681,2012.7,2012.6,4.29793547]
[1770465217831,1.26808784,2013.0,2012.7,1.33707531]
[1770465218129,2.66903465,2013.0,2012.7,1.33707531]
[1770465218335,1.40094681,2012.9,2012.7,1.33707531]
[1770465218735,1.40094681,2012.9,2012.6,2.96086016]
[1770465218736,1.26808784,2012.7,2012.4,2.96086016]
[1770465219336,1.26808784,2012.6,2012.3,2.96086016]
[1770465219733,0.13694489,2012.6,2012.3,4.29793547]
[1770465219935,2.66903465,2012.7,2012.4,1.33707531]
[1770465220934,2.66903465,2012.7,2012.4,1.68378121]
[1770465221231,1.40094681,2012.7,2012.4,1.68378121]
[1770465221438,1.30607311,2012.7,2012.5,1.33707531]
[1770465221938,1.26808784,2013.1,2012.5,1.33707531]
[1770465224642,1.27398391,2013.2,2012.6,1.33707531]
[1770465228536,1.27398391,2013.2,2012.5,0.24866]
[1770465228936,1.27398391,2013.2,2012.4,4.64464137]
[1770465231043,1.27398391,2013.2,2012.4,0.3467059]
[1770465231236,1.27398391,2013.2,2012.2,4.29793547]
[1770465232839,1.27398391,2013.2,2012.2,4.64492599]
[1770465233033,1.27398391,2013.2,2012.2,3.30785068]
[1770465233242,1.27398391,2013.2,2012.2,0.34699052]
[1770465233438,1.27398391,2013.2,2012.1,4.54664547]
[1770465234443,1.27398391,2013.2,2012.1,1.58578531]
[1770465235442,1.26808784,2013.1,2012.2,2.1621335]
[1770465235843,1.26808784,2013.1,2012.2,3.49920881]
[1770465237147,2.1621335,2013.0,2012.2,0.33346804]
[1770465237350,2.1621335,2013.0,2012.0,2.1621335]
[1770465237351,1.26808784,2012.9,2012.0,2.1621335]
[1770465238847,1.26808784,2012.9,2012.0,3.49920881]
[1770465239352,1.26808784,2012.9,2012.0,2.1621335]
[1770465239556,1.26808784,2012.7,2012.0,2.1621335]
[1770465240652,1.26808784,2012.7,2011.9,0.00564943]
[1770465240952,1.26808784,2012.7,2011.9,0.3393046]
[1770465241148,1.26808784,2012.5,2011.6,5.12299366]
[1770465241348,1.26808784,2012.5,2011.8,3.49920881]
[1770465241550,1.26808784,2012.5,2012.2,3.49920881]
[1770465241855,1.26808784,2012.9,2012.2,2.1621335]
[1770465242044,1.26808784,2012.9,2012.2,2.16842817]
[1770465242248,1.26808784,2012.9,2012.2,3.50550348]
[1770465243356,1.26808784,2012.9,2012.4,3.49920881]
[1770465244952,1.26808784,2012.9,2012.5,1.33707531]
[1770465246351,1.64679451,2013.1,2012.7,1.62150745]
[1770465246753,1.64679451,2013.0,2012.3,2.96086016]
[1770465246946,1.64679451,2013.0,2012.2,1.62780212]
[1770465248454,1.64679451,2013.0,2012.6,1.62150745]
[1770465249355,1.64679451,2013.0,2012.4,1.62150745]
[1770465255856,1.64679451,2013.0,2012.3,1.54046327]
[1770465256155,1.64679451,2013.0,2012.2,1.54675794]
[1770465267362,1.64679451,2013.0,2012.2,0.00629467]
[1770465268267,1.53747475,2012.9,2011.9,4.50132343]
[1770465268466,1.53747475,2012.9,2011.9,1.54046327]
[1770465269355,1.53747475,2012.9,2011.9,1.54640888]
[1770465271264,1.53747475,2012.9,2012.1,1.54046327]
[1770465271762,0.72310856,2012.9,2012.2,1.54046327]
[1770465272463,0.72310856,2012.9,2012.3,1.54046327]
[1770465272663,0.72310856,2012.9,2012.1,1.54046327]
[1770465272868,0.72310856,2012.9,2012.0,2.96086016]
[1770465272869,0.01342715,2012.8,2012.0,0.59646327]
[1770465285281,0.01342715,2012.8,2012.0,1.41830253]
[1770465285483,0.96153752,2012.6,2012.0,1.41830253]
[1770465285789,0.96153752,2012.7,2012.0,1.41830253]
[1770465286378,7.42101952,2012.9,2012.0,1.41830253]
[1770465286685,8.35926524,2013.0,2012.0,1.41830253]
[1770465286886,0.99539527,2012.9,2012.0,1.41830253]
[1770465291493,0.85402611,2013.0,2012.2,1.41830253]
[1770465292793,8.25823837,2013.2,2012.2,1.41830253]
[1770465293084,0.83721885,2013.2,2012.4,1.41830253]
[1770465294391,0.77872133,2012.6,2012.0,4.44820156]
[1770465294588,2.16284249,2012.6,2011.9,1.42424814]
[1770465294790,2.16284249,2012.4,2011.3,4.44820156]
[1770465294981,9.58386201,2012.4,2011.4,1.41830253]
[1770465295586,7.42101952,2012.3,2011.4,1.41830253]
[1770465295783,9.58386201,2012.4,2011.5,1.41830253]
[1770465295990,7.42101952,2012.3,2011.5,1.41830253]
[1770465296190,9.58386201,2012.4,2011.5,1.41830253]
[1770465296389,18.26312311,2012.7,2011.9,2.16284249]
[1770465296594,0.01216942,2012.6,2011.8,1.41830253]
[1770465300596,7.42101952,2013.0,2011.9,1.41830253]
[1770465300792,7.42101952,2013.1,2011.9,1.41830253]
[1770465301898,7.42101952,2013.1,2012.2,1.41830253]
[1770465302202,0.00589607,2013.2,2012.2,1.41830253]
[1770465304900,0.00141824,2013.1,2012.2,1.41830253]
[1770465305096,0.00589607,2013.2,2012.2,1.66699253]
[1770465305397,0.00589607,2013.2,2012.4,1.41830253]
[1770465307401,0.02596442,2013.2,2012.4,1.41830253]
[1770465307704,0.00589607,2013.2,2012.4,1.41830253]
[1770465308099,0.02941603,2013.2,2012.4,1.41830253]
[1770465309205,0.00589607,2013.2,2012.4,1.41830253]
[1770465310205,0.04195449,2013.2,2012.4,1.41830253]
[1770465312101,7.42101952,2013.8,2013.1,0.24859]
[1770465312304,0.06173529,2014.0,2013.2,1.22140204]
[1770465313100,0.06561725,2014.0,2013.2,1.22490274]
[1770465315200,0.00388196,2014.0,2013.2,1.22490274]
[1770465315600,0.13334546,2014.0,2013.2,1.22490274]
[1770465318312,0.00388196,2014.0,2013.2,1.22490274]
[1770465320013,0.12819785,2014.4,2013.2,1.22490274]
[1770465320912,0.13327113,2014.4,2013.2,1.22490274]
[1770465325113,0.11611587,2014.3,2013.2,1.22490274]
[1770465328812,0.00507328,2014.4,2013.2,1.47347274]
[1770465329013,0.13290393,2014.4,2013.2,1.47347274]
[1770465330812,0.12840762,2014.3,2013.2,1.22490274]
[1770465331412,3.11149708,2014.2,2013.2,1.22490274]
[1770465331620,0.12188542,2014.1,2013.2,1.22490274]
[1770465332214,0.12188542,2014.1,2013.2,0.0035007]
[1770465332420,0.12189211,2013.5,2012.8,1.20463255]
[1770465333420,0.12189211,2013.5,2012.8,1.20918833]
[1770465334320,7.42101952,2013.8,2012.8,1.20918833]
[1770465335220,7.55172049,2014.1,2012.8,1.20918833]
[1770465335817,7.42101952,2014.1,2012.8,1.20918833]
[1770465336017,7.55070517,2014.1,2012.8,1.20918833]
[1770465336720,7.55070517,2014.1,2012.8,1.45780833]
[1770465337318,7.42101952,2014.1,2012.8,1.45780833]
[1770465337623,7.42101952,2014.1,2012.9,1.23690488]
[1770465337826,7.42101952,2014.3,2012.9,1.48551488]
[1770465338020,7.4260928,2014.4,2013.2,1.23690488]
[1770465338223,0.00507328,2014.4,2013.2,1.23690488]
[1770465339925,0.13577784,2014.4,2013.2,1.23690488]
[1770465340129,0.1307153,2014.3,2013.2,1.23690488]
[1770465341821,0.11643009,2014.4,2013.2,1.23690488]
[1770465345420,0.11643009,2014.4,2013.2,1.48547488]
[1770465346926,0.00507328,2014.4,2013.2,1.48547488]
[1770465347627,0.00507328,2014.4,2013.3,1.23690488]
[1770465347829,7.4260928,2014.4,2013.3,1.23690488]
[1770465349326,7.53164352,2014.4,2013.3,1.23690488]
[1770465350625,0.10371937,2014.3,2013.3,1.23690488]
[1770465350833,7.52473889,2014.2,2013.3,1.23690488]
[1770465351134,0.09700797,2014.1,2013.3,1.23690488]
[1770465352632,0.09307865,2014.0,2013.2,1.23690488]
[1770465352834,0.09307865,2013.9,2013.2,1.23690488]
[1770465354133,0.10074143,2013.8,2013.2,1.23690488]
[1770465354627,0.10074143,2013.8,2012.9,1.23690488]
[1770465360546,7.42101952,2013.9,2012.9,1.23690488]
[1770465360842,0.08703297,2013.8,2012.9,1.23690488]
[1770465361245,7.42101952,2013.9,2012.9,1.23690488]
[1770465361546,7.42101952,2014.1,2013.0,1.23690488]
[1770465363152,7.50428432,2014.1,2013.0,1.23690488]
[1770465365554,8.90554344,2014.3,2013.0,1.48549488]
[1770465365555,7.42101952,2014.2,2013.0,1.48549488]
[1770465365849,7.42101952,2014.3,2013.1,1.23690488]
[1770465366050,0.07864479,2014.2,2013.1,1.23690488]
[1770465367854,7.42101952,2014.3,2013.1,1.23690488]
[1770465368561,7.49397962,2014.3,2013.1,1.23690488]
[1770465369355,0.06665482,2014.2,2013.1,1.23690488]
[1770465370159,7.48419172,2014.3,2013.1,1.48549488]
[1770465370552,0.07155025,2014.2,2013.1,1.48549488]
[1770465371054,0.07364493,2014.1,2013.1,1.48549488]
[1770465377571,0.05553959,2014.0,2013.1,1.23690488]
[1770465377867,7.47655911,2013.9,2013.1,1.23690488]
[1770465378062,7.42101952,2013.9,2013.1,1.23690488]
[1770465378473,7.47660419,2014.2,2013.1,1.23690488]
[1770465379367,7.47660419,2014.2,2013.1,1.48548488]
[1770465379575,7.42101952,2014.2,2013.1,1.48548488]
[1770465380567,0.04670019,2014.3,2013.1,1.48548488]
[1770465380568,7.46771971,2014.3,2013.2,1.20412093]
[1770465380771,7.4688461,2014.4,2013.3,1.20412093]
[1770465381369,0.03697396,2014.3,2013.3,1.20412093]
[1770465383768,0.03697396,2014.3,2013.4,1.2094115]
[1770465384674,0.02086682,2014.4,2013.4,1.2094115]
[1770465386371,0.00507328,2014.4,2013.4,1.2094115]
[1770465389477,0.00507328,2014.4,2013.7,1.21296169]
[1770465391973,0.00507328,2014.4,2013.3,5.37194941]
[1770465391974,2.1592034,2014.3,2013.6,1.2132435]
[1770465392375,9.58022292,2014.3,2013.6,1.2132435]
[1770465393379,7.42101952,2014.3,2013.6,1.2132435]
[1770465394180,7.4260928,2014.4,2013.6,1.2132435]
[1770465395881,18.26312311,2014.7,2013.8,1.20685693]
[1770465396180,7.42101952,2014.7,2013.8,1.20685693]
[1770465396872,0.0059112,2014.7,2013.8,1.45534693]
[1770465399384,7.42101952,2015.2,2014.0,1.20133488]
[1770465400280,7.42101952,2015.3,2014.0,1.20133488]
[1770465400578,0.00497668,2015.2,2014.0,1.20133488]
[1770465401082,7.4259962,2015.2,2014.0,1.20133488]
[1770465401377,0.00497668,2015.2,2014.0,1.20133488]
[1770465401882,5.92947687,2015.1,2014.0,1.20133488]
[1770465402081,5.92947687,2015.1,2014.0,1.44980488]
[1770465402279,0.00497668,2015.2,2014.2,1.19860722]
[1770465402582,0.00497668,2015.2,2014.2,1.44705722]
[1770465403381,0.00497668,2015.2,2014.4,1.20154266]
[1770465403584,0.00497668,2015.2,2014.4,1.2065799]
[1770465405384,0.00497668,2015.2,2014.4,1.60818018]
[1770465405985,5.93445355,2015.2,2014.5,1.20127397]
[1770465406185,0.00497668,2015.2,2014.5,1.20127397]
[1770465421485,0.00497668,2015.2,2014.4,0.65505752]
[1770465421486,5.92947687,2015.6,2014.7,1.4501215]
[1770465421699,18.37785108,2016.1,2014.9,1.19924316]
[1770465421700,7.42101952,2016.0,2014.9,1.19924316]
[1770465421991,19.54728362,2016.9,2015.2,1.44756316]
[1770465421992,7.42101952,2016.4,2015.2,1.44756316]
[1770465422188,7.42101952,2016.5,2015.2,1.44756316]
[1770465422388,7.42463882,2016.5,2015.2,1.44756316]
[1770465422591,0.0036193,2016.5,2015.2,1.44756316]
[1770465423094,0.0036193,2016.5,2015.4,1.18857812]
[1770465423297,0.0036193,2016.5,2015.4,1.43687812]
[1770465424089,0.0036193,2016.5,2015.4,1.18857812]
[1770465425092,7.42463882,2016.5,2015.4,1.18857812]
[1770465425296,0.0036193,2016.5,2015.4,1.18857812]
[1770465426802,10.53131066,2016.4,2015.1,1.19173409]
[1770465427093,7.42101952,2016.0,2015.1,1.19173409]
[1770465427295,7.42101952,2016.4,2015.3,1.19173409]
[1770465427495,8.90916274,2016.5,2015.3,1.19173409]
[1770465427496,7.42463882,2016.5,2015.3,1.19173409]
[1770465427892,7.42463882,2016.5,2015.3,1.44004409]
[1770465428093,7.42463882,2016.5,2015.4,0.2483]
[1770465428292,0.0036193,2016.5,2015.5,1.19171594]
[1770465428802,0.0036193,2016.5,2015.5,1.44000594]
[1770465436302,7.42101952,2017.3,2015.9,1.19801951]
[1770465436506,7.42101952,2017.3,2016.1,1.19801951]
[1770465436807,7.42101952,2017.4,2016.1,1.19801951]
[1770465437200,7.42498536,2017.4,2016.1,1.20334672]
[1770465439303,7.42101952,2017.3,2016.1,1.20334672]
[1770465439810,7.42101952,2017.2,2016.1,1.20334672]
[1770465440513,7.42101952,2017.3,2016.1,1.20334672]
[1770465441207,7.42101952,2017.2,2016.1,1.20334672]
[1770465441600,5.90081807,2017.1,2016.1,1.20334672]
[1770465442111,5.90081807,2017.2,2016.1,1.20334672]
[1770465442411,5.90478391,2017.4,2016.1,1.20334672]
[1770465442810,5.90478391,2017.4,2016.1,1.45156672]
[1770465443000,5.90478391,2017.4,2016.4,1.17319759]
[1770465443202,0.00396584,2017.4,2016.4,1.17319759]
[1770465443407,5.90081807,2017.8,2016.6,1.17319759]
[1770465443609,0.07926122,2018.1,2017.0,1.17121467]
[1770465444507,0.08556872,2018.1,2017.0,1.17121467]
[1770465445111,5.98638679,2018.1,2017.0,1.17121467]
[1770465445306,0.08556872,2018.1,2017.0,1.17121467]
[1770465447717,5.98638679,2018.1,2017.0,1.17121467]
[1770465448112,5.90081807,2018.0,2017.0,1.17121467]
[1770465448507,5.98638679,2018.1,2017.0,1.17121467]
[1770465449112,5.90081807,2018.0,2017.0,1.17121467]
[1770465450813,5.98638679,2018.1,2017.0,1.17121467]
[1770465451018,5.90081807,2018.0,2017.0,1.17121467]
[1770465451416,9.0004435,2018.0,2017.0,1.17121467]
[1770465453315,5.90081807,2018.0,2017.0,1.17121467]
[1770465456421,5.90081807,2017.9,2017.0,1.17121467]
[1770465456624,5.90081807,2017.8,2017.0,1.17121467]
[1770465458525,5.90081807,2017.9,2017.0,1.17121467]
[1770465461223,9.0004435,2017.4,2016.6,1.10733151]
[1770465461622,5.90081807,2017.4,2016.6,1.10733151]
[1770465462124,5.90081807,2017.3,2016.5,1.10752579]
[1770465462320,5.90081807,2017.2,2016.2,1.10752579]
[1770465462518,9.0004435,2017.2,2016.2,1.10752579]
[1770465463224,5.90081807,2017.1,2016.2,1.10752579]
[1770465464521,12.00516887,2017.5,2016.1,0.00532721]
[1770465464522,9.0004435,2016.9,2016.1,0.00532721]
[1770465464729,9.0004435,2016.9,2016.1,1.10472772]
[1770465465529,5.90081807,2016.9,2016.1,1.10472772]
[1770465466330,5.90081807,2016.8,2016.1,1.10472772]
[1770465467230,5.90081807,2016.9,2016.1,1.10472772]
[1770465467819,5.90081807,2016.8,2016.1,1.10472772]
[1770465468225,5.90081807,2016.7,2016.1,0.00532721]
[1770465468432,5.90081807,2016.6,2015.9,1.10658878]
[1770465469229,5.90081807,2016.7,2015.9,1.10658878]
[1770465469421,0.00503259,2016.6,2015.9,1.11204523]
[1770465469621,5.90081807,2017.0,2015.9,1.11204523]
[1770465470532,9.0004435,2016.9,2016.0,1.08944677]
[1770465470723,5.90690319,2016.9,2016.0,1.08944677]
[1770465471526,5.90081807,2016.8,2016.0,1.08944677]
[1770465473845,5.90690319,2016.9,2016.0,1.08944677]
[1770465475039,0.00608512,2016.9,2016.0,1.08944677]
[1770465475739,0.00608512,2016.9,2016.2,1.09729745]
[1770465482249,0.00608512,2016.9,2016.2,1.34549745]
[1770465482648,5.90081807,2017.3,2016.4,1.10019462]
[1770465482848,5.90081807,2017.4,2016.4,1.10019462]
[1770465483348,5.90081807,2017.4,2016.4,1.34837462]
[1770465483757,5.9049874,2017.4,2016.4,1.34837462]
[1770465489660,0.00416933,2017.4,2016.6,1.10942739]
[1770465490258,5.9049874,2017.4,2016.6,1.10942739]
[1770465490560,0.00416933,2017.4,2016.6,1.10942739]
[1770465491555,0.00416933,2017.4,2016.1,4.44820156]
[1770465491556,0.08815973,2019.3,2017.6,1.14097]
[1770465491760,3.09962543,2021.0,2019.0,3.09962543]
[1770465491959,3.09962543,2021.0,2019.3,3.09962543]
[1770465492150,0.98273144,2020.8,2019.4,0.87963069]
[1770465492658,14.29600634,2020.7,2020.2,0.87963069]
[1770465492956,0.24748,2022.1,2020.2,0.87963069]
[1770465492957,0.94692765,2021.9,2020.6,5.88326603]
[1770465493152,3.09962543,2022.5,2020.9,2.91785689]
[1770465493153,0.94692765,2021.6,2020.9,2.91785689]
[1770465493353,0.89655752,2022.3,2020.9,0.80474802]
[1770465493548,0.36767752,2022.3,2021.1,0.87963069]
[1770465493755,0.89655752,2021.5,2020.8,0.87963069]
[1770465493952,0.00572799,2021.5,2020.8,0.88354014]
[1770465494354,2.66466853,2021.4,2020.8,0.00390945]
[1770465494551,2.66466853,2021.2,2020.1,0.87963069]
[1770465494963,2.71603783,2021.0,2020.1,0.87963069]
[1770465495465,50.41528738,2020.9,2020.1,0.8838933]
[1770465495663,2.71603783,2020.9,2020.1,0.00426261]
[1770465495863,2.71603783,2020.9,2019.4,3.47948665]
[1770465495864,2.71603783,2020.7,2019.3,0.87963069]
[1770465496557,2.71873926,2020.5,2019.3,0.87963069]
[1770465496759,2.71873926,2020.5,2019.3,0.00600969]
[1770465497463,2.91178181,2020.3,2019.5,3.97925612]
[1770465497662,2.91178181,2020.3,2019.6,0.87963069]
[1770465497858,2.91178181,2020.2,2019.4,0.87963069]
[1770465498163,2.91178181,2020.2,2019.3,0.00600969]
[1770465498556,50.62209946,2020.1,2019.3,0.88564038]
[1770465498758,2.92284991,2020.1,2019.3,0.88564038]
[1770465498962,47.69924955,2020.1,2019.4,0.87963069]
[1770465499860,50.62233199,2020.1,2019.4,0.87963069]
[1770465500364,2.92533679,2019.9,2019.0,0.87963069]
[1770465500960,47.69323986,2019.8,2019.0,0.87963069]
[1770465501159,47.69323986,2019.8,2019.2,0.87963069]
[1770465501361,47.69865573,2019.8,2019.2,0.88481486]
[1770465501756,50.63610833,2019.8,2019.2,0.88481486]
[1770465502164,40.8,2019.9,2019.4,0.87963069]
[1770465502562,2.93973134,2020.4,2019.7,0.87963069]
[1770465502763,2.93973134,2021.4,2019.7,0.87963069]
[1770465502957,2.93973134,2021.3,2019.7,0.87963069]
[1770465503160,2.9457665,2021.3,2019.7,0.87963069]
[1770465503461,40.8,2020.3,2019.7,0.87963069]
[1770465503657,3.00126164,2020.7,2019.7,0.87963069]
[1770465503964,0.00603516,2021.3,2019.7,0.87963069]
[1770465504162,3.00394312,2021.0,2020.3,0.87963069]
[1770465504568,88.48506779,2020.9,2020.3,0.87963069]
[1770465505070,91.59418493,2020.9,2020.3,0.87963069]
[1770465505368,3.10911714,2020.8,2020.3,0.87963069]
[1770465505869,47.68506779,2020.8,2020.3,0.87963069]
[1770465506065,3.11255383,2020.7,2020.1,2.90189749]
[1770465506263,3.11255383,2020.7,2019.8,3.78152818]
[1770465506458,47.68506779,2020.6,2019.9,0.87963069]
[1770465506764,3.11255383,2020.5,2019.8,10.67812917]
[1770465507062,47.68506779,2020.6,2019.9,0.87963069]
[1770465507258,50.84461167,2020.6,2019.9,7.76156862]
[1770465507465,50.84461167,2020.6,2019.9,0.87963069]
[1770465507769,4.28888326,2020.3,2019.9,0.87963069]
[1770465508170,50.84461167,2020.6,2019.9,0.87963069]
[1770465508370,50.52264671,2020.6,2019.9,0.87963069]
[1770465509070,50.52264671,2020.6,2019.7,4.32183144]
[1770465509071,3.18129622,2020.5,2019.7,2.90189749]
[1770465509273,3.18129622,2020.5,2019.3,0.87963069]
[1770465509570,3.18129622,2020.3,2019.2,9.802726]
[1770465509761,3.18129622,2020.3,2019.2,0.00518417]
[1770465509965,3.18129622,2020.3,2019.2,0.88481486]
[1770465510165,3.18458724,2020.1,2019.5,2.90189749]
[1770465510570,40.8,2020.2,2019.5,2.90189749]
[1770465510571,3.18458724,2019.9,2019.5,2.90189749]
[1770465510966,47.36310283,2019.8,2019.5,2.90189749]
[1770465511172,47.36871826,2019.8,2019.5,3.78152818]
[1770465511369,47.36871826,2019.8,2019.6,10.2838204]
[1770465511576,47.36871826,2019.8,2019.4,5.20146213]
[1770465511766,3.20686813,2019.7,2019.4,4.32183144]
[1770465512074,47.36310283,2019.7,2019.4,4.32183144]
[1770465512274,46.05095702,2019.7,2019.4,4.32183144]
[1770465513364,45.10695702,2019.7,2019.4,4.32183144]
[1770465513562,44.62384351,2019.7,2019.4,4.32183144]
[1770465513764,41.41453856,2019.7,2019.5,4.32183144]
[1770465514169,34.57676665,2019.7,2019.5,4.32183144]
[1770465514571,32.63940453,2019.7,2019.5,4.32183144]
[1770465514777,44.01513113,2020.2,2019.6,0.87963069]
[1770465514976,44.01513113,2020.2,2019.7,4.3376705]
[1770465514977,3.22074874,2020.0,2019.7,4.3376705]
[1770465515177,35.86015327,2020.1,2019.7,5.21730119]
[1770465515776,0.00415996,2020.1,2019.7,5.21730119]
[1770465516079,40.21241898,2020.1,2019.8,4.3376705]
[1770465516779,32.64356449,2020.1,2019.8,4.3376705]
[1770465516975,32.64356449,2020.1,2019.8,12.18701753]
[1770465517175,26.96573501,2020.1,2020.0,5.76264602]
[1770465517381,40.8,2020.2,2020.0,15.10375797]
[1770465517577,7.56885449,2020.7,2020.1,13.65137257]